[Event "*** Titled Tuesday 3|2 Blitz"]
[Site "Chess.com"]
[Date "2015.11.03"]
[Round "5"]
[White "fastestmindalive"]
[Black "kikydu96"]
[Result "1/2-1/2"]
[WhiteElo "2325"]
[BlackElo "2226"]
[TimeControl "180+2"]
[EndTime "18:00:48 PST"]
[Termination "Game drawn by repetition"]

1. e4 {[%clk 0:03:01.9]} 1... e5 {[%clk 0:03:00.9]} 2. Nf3 {[%clk 0:03:02.3]}
2... Nc6 {[%clk 0:03:01.9]} 3. d4 {[%clk 0:03:03.9]} 3... exd4 {[%clk
0:03:02.5]} 4. Bc4 {[%clk 0:03:05.5]} 4... Nf6 {[%clk 0:03:02.1]} 5. e5 {[%clk
0:03:06.7]} 5... d5 {[%clk 0:03:02.2]} 6. Bb5 {[%clk 0:03:08.2]} 6... Ne4 {[%clk
0:03:03.4]} 7. Nxd4 {[%clk 0:03:09.8]} 7... Bd7 {[%clk 0:03:04.6]} 8. Bxc6
{[%clk 0:03:10.5]} 8... bxc6 {[%clk 0:03:06.3]} 9. O-O {[%clk 0:03:12.1]} 9...
Bc5 {[%clk 0:03:07.3]} 10. f3 {[%clk 0:03:13.7]} 10... Ng5 {[%clk 0:03:08]} 11.
f4 {[%clk 0:03:15.3]} 11... Ne4 {[%clk 0:03:09.4]} 12. Be3 {[%clk 0:03:16.6]}
12... Bb6 {[%clk 0:03:09.6]} 13. Nc3 {[%clk 0:03:17.8]} 13... Nxc3 {[%clk
0:03:04]} 14. bxc3 {[%clk 0:03:19.7]} 14... O-O {[%clk 0:03:04.1]} 15. f5 {[%clk
0:03:20.1]} 15... Re8 {[%clk 0:03:02.4]} 16. Bf4 {[%clk 0:03:16.5]} 16... c5
{[%clk 0:03:02.1]} 17. Nb3 {[%clk 0:03:17.1]} 17... Bxf5 {[%clk 0:03:02]} 18.
Kh1 {[%clk 0:03:18.3]} 18... Be4 {[%clk 0:03:01.9]} 19. Qh5 {[%clk 0:03:14.1]}
19... Bg6 {[%clk 0:02:54.1]} 20. Qg4 {[%clk 0:03:12.3]} 20... a5 {[%clk
0:02:52.4]} 21. a4 {[%clk 0:03:08.4]} 21... Bxc2 {[%clk 0:02:48.3]} 22. Nd2
{[%clk 0:02:52.6]} 22... Bg6 {[%clk 0:02:47.7]} 23. h4 {[%clk 0:02:50.6]} 23...
Qc8 {[%clk 0:02:47.6]} 24. Qg3 {[%clk 0:02:48.3]} 24... h5 {[%clk 0:02:42.2]}
25. Rae1 {[%clk 0:02:45]} 25... Qg4 {[%clk 0:02:42.4]} 26. Qh2 {[%clk
0:02:39.3]} 26... d4 {[%clk 0:02:36.8]} 27. c4 {[%clk 0:02:38.2]} 27... c6
{[%clk 0:02:25.8]} 28. Rf3 {[%clk 0:02:39]} 28... Bd8 {[%clk 0:02:25.3]} 29. Bg3
{[%clk 0:02:35.1]} 29... Ra7 {[%clk 0:02:12.4]} 30. Rf4 {[%clk 0:02:33.6]} 30...
Qe6 {[%clk 0:02:10.9]} 31. Rff1 {[%clk 0:02:31.2]} 31... Rb7 {[%clk 0:02:07.7]}
32. Ne4 {[%clk 0:02:27.7]} 32... Be7 {[%clk 0:02:05.4]} 33. Nf6+ {[%clk
0:02:20.8]} 33... Bxf6 {[%clk 0:01:46.4]} 34. exf6 {[%clk 0:02:21.3]} 34... Qd7
{[%clk 0:01:48]} 35. Rxe8+ {[%clk 0:02:15.5]} 35... Qxe8 {[%clk 0:01:48.6]} 36.
fxg7 {[%clk 0:02:17]} 36... Rb1 {[%clk 0:01:48]} 37. Rxb1 {[%clk 0:02:16.4]}
37... Bxb1 {[%clk 0:01:49.4]} 38. Be5 {[%clk 0:02:17.7]} 38... f6 {[%clk
0:01:45.3]} 39. Bxf6 {[%clk 0:02:11]} 39... Qe1+ {[%clk 0:01:45.3]} 40. Qg1
{[%clk 0:02:12]} 40... Qxg1+ {[%clk 0:01:45.8]} 41. Kxg1 {[%clk 0:02:13.3]}
41... Bd3 {[%clk 0:01:40.5]} 42. Be7 {[%clk 0:02:13]} 42... Bxc4 {[%clk
0:01:41]} 43. Bxc5 {[%clk 0:02:14.1]} 43... d3 {[%clk 0:01:40.1]} 44. Be3 {[%clk
0:02:12.8]} 44... Bb3 {[%clk 0:01:33.1]} 45. Bd2 {[%clk 0:02:13.1]} 45... Bxa4
{[%clk 0:01:34]} 46. Bxa5 {[%clk 0:02:12.9]} 46... Kxg7 {[%clk 0:01:35.6]} 47.
Kf2 {[%clk 0:02:13.7]} 47... c5 {[%clk 0:01:31.6]} 48. Ke3 {[%clk 0:02:13.8]}
48... c4 {[%clk 0:01:32.5]} 49. g3 {[%clk 0:02:13.6]} 49... Kg6 {[%clk
0:01:33.6]} 50. Kd2 {[%clk 0:02:14.7]} 50... Kf5 {[%clk 0:01:33.9]} 51. Bc7
{[%clk 0:02:15.8]} 51... Ke4 {[%clk 0:01:33.9]} 52. Bb8 {[%clk 0:02:17.1]} 52...
Bd7 {[%clk 0:01:28.9]} 53. Ba7 {[%clk 0:02:17.6]} 53... Be6 {[%clk 0:01:27.3]}
54. Bb6 {[%clk 0:02:18.6]} 54... Kf3 {[%clk 0:01:28.4]} 55. Bc7 {[%clk
0:02:19.4]} 55... Kf2 {[%clk 0:01:28.2]} 56. Bb8 {[%clk 0:02:17.5]} 56... Kf3
{[%clk 0:01:23.1]} 57. Bc7 {[%clk 0:02:17.9]} 57... Ke4 {[%clk 0:01:23.6]} 58.
Bb8 {[%clk 0:02:18.5]} 58... Kd4 {[%clk 0:01:23.7]} 59. Ba7+ {[%clk 0:02:19.5]}
59... Kd5 {[%clk 0:01:23.9]} 60. Bb8 {[%clk 0:02:20.1]} 60... Kc5 {[%clk
0:01:25]} 61. Ba7+ {[%clk 0:02:17.3]} 61... Kb4 {[%clk 0:01:25.7]} 62. Bd4
{[%clk 0:02:18.2]} 62... Kb3 {[%clk 0:01:27]} 63. Be5 {[%clk 0:02:18.8]} 63...
Bg4 {[%clk 0:01:27.4]} 64. Bc3 {[%clk 0:02:19.9]} 64... Ka4 {[%clk 0:01:25.7]}
65. Bh8 {[%clk 0:02:21.8]} 65... Kb5 {[%clk 0:01:27.2]} 66. Bc3 {[%clk
0:02:22.6]} 66... Kc5 {[%clk 0:01:28.2]} 67. Bh8 {[%clk 0:02:23.4]} 67... Kd5
{[%clk 0:01:28.5]} 68. Bc3 {[%clk 0:02:24.2]} 68... Ke4 {[%clk 0:01:29.5]} 69.
Ba5 {[%clk 0:02:25.3]} 69... Bd7 {[%clk 0:01:26.7]} 70. Bc7 {[%clk 0:02:24.6]}
70... Bc8 {[%clk 0:01:27.8]} 71. Bb8 {[%clk 0:02:25.2]} 71... Bb7 {[%clk
0:01:28.4]} 72. Bc7 {[%clk 0:02:26.1]} 72... Kd5 {[%clk 0:01:29]} 73. Bb8 {[%clk
0:02:22.6]} 73... Kc6 {[%clk 0:01:30.1]} 74. Bf4 {[%clk 0:02:22]} 74... Kc5
{[%clk 0:01:31.5]} 75. Be3+ {[%clk 0:02:18.2]} 75... Kd5 {[%clk 0:01:27.3]} 76.
Ba7 {[%clk 0:02:17]} 76... Ke4 {[%clk 0:01:26.9]} 77. Bb6 {[%clk 0:02:15.4]}
77... Kf3 {[%clk 0:01:26]} 78. Bc7 {[%clk 0:02:16.3]} 78... Be4 {[%clk
0:01:17.7]} 79. Bb8 {[%clk 0:02:15.2]} 79... c3+ {[%clk 0:01:18.3]} 80. Kxc3
{[%clk 0:02:15.7]} 80... Ke2 {[%clk 0:01:19.9]} 81. Bf4 {[%clk 0:02:16.8]} 81...
Bf5 {[%clk 0:01:17.2]} 82. Bg5 {[%clk 0:02:14.5]} 82... Kf3 {[%clk 0:01:16.2]}
83. Bf4 {[%clk 0:02:14.9]} 83... Ke2 {[%clk 0:01:17.1]} 84. Bg5 {[%clk 0:02:16]}
84... Be4 {[%clk 0:01:18.7]} 85. Bf4 {[%clk 0:02:16.5]} 85... Bf5 {[%clk
0:01:13.7]} 86. Bh6 {[%clk 0:02:16.6]} 86... Be4 {[%clk 0:01:14]} 87. Bf4 {[%clk
0:02:17]} 87... Bf5 {[%clk 0:01:14.8]} 88. Bh6 {[%clk 0:02:17.5]} 88... Be4
{[%clk 0:01:13.7]} 89. Bf4 {[%clk 0:02:18.2]} 89... Bf5 {[%clk 0:01:15]} 1/2-1/2

[Event "*** Titled Tuesday 3|2 Blitz"]
[Site "Chess.com"]
[Date "2015.11.03"]
[Round "5"]
[White "Aygehovit1992"]
[Black "Malev212"]
[Result "1/2-1/2"]
[WhiteElo "2471"]
[BlackElo "2296"]
[TimeControl "180+2"]
[EndTime "18:01:11 PST"]
[Termination "Game drawn - insufficient material"]

1. e4 {[%clk 0:03:01.9]} 1... c5 {[%clk 0:02:59.9]} 2. Nf3 {[%clk 0:03:02.2]}
2... a6 {[%clk 0:03:00.7]} 3. Nc3 {[%clk 0:03:02.3]} 3... e6 {[%clk 0:02:59.8]}
4. d4 {[%clk 0:03:03.1]} 4... cxd4 {[%clk 0:03:00.1]} 5. Nxd4 {[%clk 0:03:04.4]}
5... d6 {[%clk 0:03:01.5]} 6. g4 {[%clk 0:03:03.6]} 6... b5 {[%clk 0:03:01]} 7.
Bg2 {[%clk 0:03:04.1]} 7... Bb7 {[%clk 0:03:01.9]} 8. Be3 {[%clk 0:03:04.2]}
8... h6 {[%clk 0:02:58.3]} 9. a3 {[%clk 0:03:01.9]} 9... Nd7 {[%clk 0:02:57.5]}
10. Qe2 {[%clk 0:02:57.4]} 10... Rc8 {[%clk 0:02:56.8]} 11. O-O {[%clk
0:02:57.6]} 11... Ngf6 {[%clk 0:02:51]} 12. h3 {[%clk 0:02:58.4]} 12... e5
{[%clk 0:02:27.3]} 13. Nf5 {[%clk 0:02:57.6]} 13... g6 {[%clk 0:02:27.2]} 14.
Ng3 {[%clk 0:02:56]} 14... Be7 {[%clk 0:02:15.2]} 15. Rad1 {[%clk 0:02:55.7]}
15... Qc7 {[%clk 0:02:10.6]} 16. f4 {[%clk 0:02:54.6]} 16... exf4 {[%clk
0:02:06.5]} 17. Bxf4 {[%clk 0:02:55.8]} 17... Ne5 {[%clk 0:01:56.8]} 18. Rf2
{[%clk 0:02:26.9]} 18... Nfd7 {[%clk 0:01:41.6]} 19. Nd5 {[%clk 0:02:24.3]}
19... Bxd5 {[%clk 0:01:40.4]} 20. exd5 {[%clk 0:02:25.7]} 20... Bf6 {[%clk
0:01:10.7]} 21. c3 {[%clk 0:02:25.4]} 21... Bg7 {[%clk 0:01:10.5]} 22. Ne4
{[%clk 0:02:22.5]} 22... O-O {[%clk 0:01:10.3]} 23. Qd2 {[%clk 0:02:03.5]} 23...
Kh7 {[%clk 0:01:05.4]} 24. Rdf1 {[%clk 0:01:56.6]} 24... Nc5 {[%clk 0:01:04.3]}
25. Nxc5 {[%clk 0:01:50.7]} 25... Qxc5 {[%clk 0:01:04.1]} 26. Be3 {[%clk
0:01:51.1]} 26... Qc7 {[%clk 0:01:04.3]} 27. Bd4 {[%clk 0:01:49.2]} 27... Rce8
{[%clk 0:01:03.3]} 28. Qc2 {[%clk 0:01:45]} 28... Re7 {[%clk 0:01:01.9]} 29. Qd1
{[%clk 0:01:33.3]} 29... Nc4 {[%clk 0:00:56.8]} 30. Bxg7 {[%clk 0:01:09.6]}
30... Kxg7 {[%clk 0:00:57.3]} 31. Qd4+ {[%clk 0:01:11.2]} 31... Ne5 {[%clk
0:00:50.5]} 32. Rf6 {[%clk 0:01:03.2]} 32... Rd8 {[%clk 0:00:41.9]} 33. Kh2
{[%clk 0:00:55.2]} 33... Kg8 {[%clk 0:00:37.5]} 34. h4 {[%clk 0:00:50.2]} 34...
Qc4 {[%clk 0:00:26.9]} 35. Kg3 {[%clk 0:00:43.5]} 35... Qxd4 {[%clk 0:00:26.5]}
36. cxd4 {[%clk 0:00:43.4]} 36... Nc4 {[%clk 0:00:26.1]} 37. R1f2 {[%clk
0:00:34.4]} 37... Rdd7 {[%clk 0:00:23.8]} 38. h5 {[%clk 0:00:34.4]} 38... Kg7
{[%clk 0:00:22.1]} 39. hxg6 {[%clk 0:00:35.2]} 39... fxg6 {[%clk 0:00:22.9]} 40.
Re6 {[%clk 0:00:30.4]} 40... Rf7 {[%clk 0:00:19.8]} 41. Be4 {[%clk 0:00:28.9]}
41... Rxf2 {[%clk 0:00:19.7]} 42. Kxf2 {[%clk 0:00:29.7]} 42... Rf7+ {[%clk
0:00:18.5]} 43. Ke2 {[%clk 0:00:30.9]} 43... Rf6 {[%clk 0:00:19.4]} 44. Re7+
{[%clk 0:00:28]} 44... Kf8 {[%clk 0:00:20]} 45. Ra7 {[%clk 0:00:25.3]} 45...
Nxb2 {[%clk 0:00:18.2]} 46. Rxa6 {[%clk 0:00:26.6]} 46... Nc4 {[%clk 0:00:18]}
47. Bd3 {[%clk 0:00:27.3]} 47... Rf4 {[%clk 0:00:12]} 48. a4 {[%clk 0:00:28.3]}
48... Rxd4 {[%clk 0:00:07.3]} 49. axb5 {[%clk 0:00:29.2]} 49... Ne5 {[%clk
0:00:07.9]} 50. Bc2 {[%clk 0:00:27.6]} 50... Rb4 {[%clk 0:00:08.4]} 51. Rxd6
{[%clk 0:00:23.5]} 51... Rb2 {[%clk 0:00:06.1]} 52. Kd1 {[%clk 0:00:23.3]} 52...
Rxb5 {[%clk 0:00:06.9]} 53. Bxg6 {[%clk 0:00:17.6]} 53... Nxg6 {[%clk
0:00:05.7]} 54. Rxg6 {[%clk 0:00:18.6]} 54... Rxd5+ {[%clk 0:00:07.1]} 55. Ke2
{[%clk 0:00:19.9]} 55... Rg5 {[%clk 0:00:07.3]} 56. Rxh6 {[%clk 0:00:19.7]}
56... Rxg4 {[%clk 0:00:07.9]} 57. Kf3 {[%clk 0:00:19.5]} 57... Rg7 {[%clk
0:00:07.8]} 58. Rh4 {[%clk 0:00:19.7]} 58... Rf7+ {[%clk 0:00:07.9]} 59. Rf4
{[%clk 0:00:21.3]} 59... Rxf4+ {[%clk 0:00:08.4]} 60. Kxf4 {[%clk 0:00:23]}
1/2-1/2

[Event "*** Titled Tuesday 3|2 Blitz"]
[Site "Chess.com"]
[Date "2015.11.03"]
[Round "6"]
[White "simplerXiao"]
[Black "ArnaudovP"]
[Result "0-1"]
[WhiteElo "2338"]
[BlackElo "2324"]
[TimeControl "180+2"]
[EndTime "18:05:32 PST"]
[Termination "ArnaudovP won by resignation"]

1. e4 {[%clk 0:03:01.9]} 1... e5 {[%clk 0:02:40.7]} 2. Nf3 {[%clk 0:03:01.7]}
2... Nc6 {[%clk 0:02:41.1]} 3. Bc4 {[%clk 0:03:02.5]} 3... Bc5 {[%clk
0:02:41.6]} 4. d3 {[%clk 0:03:03.5]} 4... Nf6 {[%clk 0:02:42.1]} 5. c3 {[%clk
0:03:04.8]} 5... O-O {[%clk 0:02:42.1]} 6. Nbd2 {[%clk 0:03:05.9]} 6... d5
{[%clk 0:02:43.7]} 7. Bb3 {[%clk 0:03:06.4]} 7... a5 {[%clk 0:02:43.3]} 8. Qe2
{[%clk 0:03:06.8]} 8... a4 {[%clk 0:02:43.3]} 9. Bc2 {[%clk 0:03:08]} 9... Be6
{[%clk 0:02:41.9]} 10. h3 {[%clk 0:03:08.6]} 10... Re8 {[%clk 0:02:40.9]} 11.
O-O {[%clk 0:03:01.2]} 11... h6 {[%clk 0:02:39.2]} 12. Rd1 {[%clk 0:03:01.5]}
12... d4 {[%clk 0:02:39.2]} 13. Nf1 {[%clk 0:02:57]} 13... Bb6 {[%clk
0:02:36.2]} 14. g4 {[%clk 0:02:51.5]} 14... a3 {[%clk 0:02:36.8]} 15. Ng3 {[%clk
0:02:47.9]} 15... axb2 {[%clk 0:02:36.8]} 16. Bxb2 {[%clk 0:02:48.4]} 16... dxc3
{[%clk 0:02:38]} 17. Bxc3 {[%clk 0:02:49.5]} 17... Nd4 {[%clk 0:02:39]} 18. Nxd4
{[%clk 0:02:43]} 18... Bxd4 {[%clk 0:02:39.8]} 19. Bxd4 {[%clk 0:02:37.8]} 19...
Qxd4 {[%clk 0:02:39.6]} 20. Bb3 {[%clk 0:02:38.7]} 20... Bxb3 {[%clk 0:02:37.6]}
21. axb3 {[%clk 0:02:39.8]} 21... Rxa1 {[%clk 0:02:37.4]} 0-1

[Event "*** Titled Tuesday 3|2 Blitz"]
[Site "Chess.com"]
[Date "2015.11.03"]
[Round "6"]
[White "jcgs1030"]
[Black "saraswathii"]
[Result "1-0"]
[WhiteElo "2138"]
[BlackElo "1884"]
[TimeControl "180+2"]
[EndTime "18:07:47 PST"]
[Termination "jcgs1030 won on time"]

1. e4 {[%clk 0:03:01.9]} 1... c5 {[%clk 0:00:25.7]} 2. Nf3 {[%clk 0:02:57.8]}
2... e6 {[%clk 0:00:26.4]} 3. d4 {[%clk 0:02:59.1]} 3... cxd4 {[%clk 0:00:26.9]}
4. Nxd4 {[%clk 0:03:01]} 4... Nf6 {[%clk 0:00:28]} 5. Bd3 {[%clk 0:02:58.9]}
5... Nc6 {[%clk 0:00:28]} 6. Nxc6 {[%clk 0:02:57.7]} 6... bxc6 {[%clk
0:00:28.5]} 7. O-O {[%clk 0:02:57.1]} 7... d5 {[%clk 0:00:29.1]} 8. Nd2 {[%clk
0:02:58]} 8... Bd6 {[%clk 0:00:29.3]} 9. Qe2 {[%clk 0:02:57.7]} 9... Qc7 {[%clk
0:00:27.2]} 10. h3 {[%clk 0:02:55.7]} 10... O-O {[%clk 0:00:26.8]} 11. b3 {[%clk
0:02:56.3]} 11... Be5 {[%clk 0:00:22.9]} 12. Rb1 {[%clk 0:02:56.2]} 12... a5
{[%clk 0:00:22.1]} 13. c4 {[%clk 0:02:54.7]} 13... a4 {[%clk 0:00:21.8]} 14. Re1
{[%clk 0:02:48.5]} 14... axb3 {[%clk 0:00:21.6]} 15. axb3 {[%clk 0:02:48.1]}
15... Ra2 {[%clk 0:00:21.2]} 16. exd5 {[%clk 0:02:48.4]} 16... Bf4 {[%clk
0:00:17.3]} 17. dxc6 {[%clk 0:02:41.8]} 17... Qxc6 {[%clk 0:00:04.2]} 18. Rb2
{[%clk 0:02:39.5]} 1-0

[Event "*** Titled Tuesday 3|2 Blitz"]
[Site "Chess.com"]
[Date "2015.11.03"]
[Round "6"]
[White "MMSANCHEZ"]
[Black "Anton_Demchenko"]
[Result "0-1"]
[WhiteElo "2313"]
[BlackElo "2627"]
[TimeControl "180+2"]
[EndTime "18:07:51 PST"]
[Termination "Anton_Demchenko won by resignation"]

1. d4 {[%clk 0:03:01.9]} 1... Nf6 {[%clk 0:03:00.6]} 2. Nf3 {[%clk 0:02:57.6]}
2... g6 {[%clk 0:03:01.8]} 3. c4 {[%clk 0:02:57.7]} 3... Bg7 {[%clk 0:03:03]} 4.
Nc3 {[%clk 0:02:58.4]} 4... O-O {[%clk 0:03:04.9]} 5. e4 {[%clk 0:02:58.8]} 5...
d6 {[%clk 0:03:05.9]} 6. h3 {[%clk 0:02:59.7]} 6... e5 {[%clk 0:03:06.6]} 7. d5
{[%clk 0:03:00.6]} 7... a5 {[%clk 0:03:07.7]} 8. g4 {[%clk 0:03:00.6]} 8... Na6
{[%clk 0:03:08.3]} 9. Be2 {[%clk 0:03:01.6]} 9... Nc5 {[%clk 0:03:08.5]} 10. Qc2
{[%clk 0:03:02.6]} 10... c6 {[%clk 0:03:02.2]} 11. Nd2 {[%clk 0:02:58.5]} 11...
a4 {[%clk 0:03:00.9]} 12. Rb1 {[%clk 0:02:55.1]} 12... Bd7 {[%clk 0:02:59.5]}
13. b4 {[%clk 0:02:55.8]} 13... axb3 {[%clk 0:03:01]} 14. axb3 {[%clk 0:02:57]}
14... cxd5 {[%clk 0:02:59.4]} 15. cxd5 {[%clk 0:02:56.1]} 15... Rc8 {[%clk
0:02:58.7]} 16. Bb2 {[%clk 0:02:50.5]} 16... b5 {[%clk 0:02:49.1]} 17. g5 {[%clk
0:02:32.7]} 17... Nh5 {[%clk 0:02:40.2]} 18. Bxh5 {[%clk 0:02:27.1]} 18... gxh5
{[%clk 0:02:42.1]} 19. h4 {[%clk 0:02:27.7]} 19... b4 {[%clk 0:02:37.7]} 20. Ne2
{[%clk 0:02:21.8]} 20... Bb5 {[%clk 0:02:37.2]} 21. Nc4 {[%clk 0:02:22.5]} 21...
Nxb3 {[%clk 0:02:37.2]} 22. Qxb3 {[%clk 0:02:22.4]} 22... Rxc4 {[%clk
0:02:35.9]} 23. Ng3 {[%clk 0:02:14.3]} 23... Qd7 {[%clk 0:02:26.8]} 24. f3
{[%clk 0:01:53.1]} 24... Rfc8 {[%clk 0:02:26.9]} 25. Qe3 {[%clk 0:01:44.2]}
25... Rc2 {[%clk 0:02:22.7]} 26. Nf5 {[%clk 0:01:22.1]} 26... Re2+ {[%clk
0:02:18.3]} 27. Qxe2 {[%clk 0:01:22.3]} 27... Bxe2 {[%clk 0:02:20.2]} 28. Kxe2
{[%clk 0:01:23.6]} 28... Qb5+ {[%clk 0:02:19.4]} 29. Kf2 {[%clk 0:01:24.9]}
29... Rc2+ {[%clk 0:02:20.2]} 30. Kg3 {[%clk 0:01:26.2]} 30... Qe2 {[%clk
0:02:21.3]} 0-1

[Event "*** Titled Tuesday 3|2 Blitz"]
[Site "Chess.com"]
[Date "2015.11.03"]
[Round "6"]
[White "Malev212"]
[Black "DanielNaroditsky"]
[Result "1-0"]
[WhiteElo "2313"]
[BlackElo "2502"]
[TimeControl "180+2"]
[EndTime "18:09:23 PST"]
[Termination "Malev212 won by resignation"]

1. d4 {[%clk 0:03:01.9]} 1... Nf6 {[%clk 0:03:00.7]} 2. c4 {[%clk 0:02:57.5]}
2... e6 {[%clk 0:03:02]} 3. Nf3 {[%clk 0:02:57.4]} 3... d5 {[%clk 0:03:00.5]} 4.
Nc3 {[%clk 0:02:56.6]} 4... Bb4 {[%clk 0:03:02.1]} 5. Qa4+ {[%clk 0:02:51.4]}
5... Nc6 {[%clk 0:03:02.9]} 6. a3 {[%clk 0:02:52.3]} 6... Bxc3+ {[%clk 0:03:03]}
7. bxc3 {[%clk 0:02:53.3]} 7... O-O {[%clk 0:03:02.8]} 8. Bg5 {[%clk 0:02:51]}
8... h6 {[%clk 0:02:52.9]} 9. Bh4 {[%clk 0:02:51.1]} 9... g5 {[%clk 0:02:52.9]}
10. Bg3 {[%clk 0:02:51.8]} 10... Ne4 {[%clk 0:02:54]} 11. e3 {[%clk 0:02:52.5]}
11... Nxc3 {[%clk 0:02:48.8]} 12. Qc2 {[%clk 0:02:52.4]} 12... Ne4 {[%clk
0:02:50.7]} 13. Bd3 {[%clk 0:02:30.2]} 13... Nxg3 {[%clk 0:02:50.9]} 14. hxg3
{[%clk 0:02:29.3]} 14... Kg7 {[%clk 0:02:52.4]} 15. Rc1 {[%clk 0:02:11.9]} 15...
Qf6 {[%clk 0:02:49.4]} 16. O-O {[%clk 0:02:05.7]} 16... Bd7 {[%clk 0:02:48.9]}
17. Nh2 {[%clk 0:01:56.1]} 17... h5 {[%clk 0:02:49.1]} 18. g4 {[%clk 0:01:52.4]}
18... Rh8 {[%clk 0:02:45.6]} 19. f4 {[%clk 0:01:50.1]} 19... hxg4 {[%clk
0:02:31.2]} 20. Nxg4 {[%clk 0:01:46.7]} 20... Qe7 {[%clk 0:02:32.4]} 21. f5
{[%clk 0:01:32.5]} 21... exf5 {[%clk 0:02:19.4]} 22. Bxf5 {[%clk 0:01:32.3]}
22... dxc4 {[%clk 0:02:03.9]} 23. d5 {[%clk 0:01:29.3]} 23... Ne5 {[%clk
0:01:40]} 24. Qc3 {[%clk 0:01:27.1]} 24... f6 {[%clk 0:01:38.9]} 25. Nxe5 {[%clk
0:01:26.7]} 25... fxe5 {[%clk 0:01:16.4]} 26. Bxd7 {[%clk 0:01:25.8]} 26... Qxd7
{[%clk 0:01:17.8]} 27. Qxe5+ {[%clk 0:01:26.4]} 27... Kh7 {[%clk 0:01:13.3]} 28.
Rxc4 {[%clk 0:01:17.3]} 28... Rae8 {[%clk 0:01:08.9]} 29. Qxg5 {[%clk
0:01:05.4]} 29... Qg7 {[%clk 0:01:09.1]} 30. Qf5+ {[%clk 0:00:56.2]} 30... Qg6
{[%clk 0:01:08.7]} 31. Rh4+ {[%clk 0:00:56]} 31... Kg7 {[%clk 0:01:09.2]} 32.
Rg4 {[%clk 0:00:56.8]} 1-0

[Event "*** Titled Tuesday 3|2 Blitz"]
[Site "Chess.com"]
[Date "2015.11.03"]
[Round "6"]
[White "ChadaevNikolay"]
[Black "ItalianMachine"]
[Result "0-1"]
[WhiteElo "2548"]
[BlackElo "2271"]
[TimeControl "180+2"]
[EndTime "18:10:22 PST"]
[Termination "ItalianMachine won on time"]

1. e4 {[%clk 0:03:01.9]} 1... e5 {[%clk 0:02:53.6]} 2. Nf3 {[%clk 0:03:02.7]}
2... Nc6 {[%clk 0:02:54.5]} 3. Bb5 {[%clk 0:03:03.6]} 3... a6 {[%clk 0:02:54.7]}
4. Ba4 {[%clk 0:03:04.7]} 4... Nf6 {[%clk 0:02:55.4]} 5. O-O {[%clk 0:03:06.2]}
5... b5 {[%clk 0:02:55.7]} 6. Bb3 {[%clk 0:03:06.9]} 6... Be7 {[%clk 0:02:56.8]}
7. Re1 {[%clk 0:03:07.2]} 7... O-O {[%clk 0:02:58.3]} 8. a4 {[%clk 0:03:08.1]}
8... Rb8 {[%clk 0:02:53.2]} 9. axb5 {[%clk 0:03:04.7]} 9... axb5 {[%clk
0:02:54]} 10. d3 {[%clk 0:03:02.3]} 10... d6 {[%clk 0:02:51.7]} 11. Nbd2 {[%clk
0:03:00.2]} 11... h6 {[%clk 0:02:52.8]} 12. h3 {[%clk 0:02:58.4]} 12... Be6
{[%clk 0:02:53.1]} 13. Bxe6 {[%clk 0:02:53.9]} 13... fxe6 {[%clk 0:02:54.3]} 14.
c3 {[%clk 0:02:55.5]} 14... d5 {[%clk 0:02:55.3]} 15. exd5 {[%clk 0:02:34]}
15... Qxd5 {[%clk 0:02:57.2]} 16. Qe2 {[%clk 0:02:35.3]} 16... Nh5 {[%clk
0:02:39.5]} 17. Nf1 {[%clk 0:02:08.8]} 17... Bf6 {[%clk 0:02:25.4]} 18. N3h2
{[%clk 0:02:01.5]} 18... g6 {[%clk 0:01:55]} 19. Bxh6 {[%clk 0:02:00.9]} 19...
Rfd8 {[%clk 0:01:56.6]} 20. Ng4 {[%clk 0:01:57.7]} 20... Qxd3 {[%clk 0:01:50.3]}
21. Nxf6+ {[%clk 0:01:50.9]} 21... Nxf6 {[%clk 0:01:50.4]} 22. Bg5 {[%clk
0:01:51.5]} 22... Qxe2 {[%clk 0:01:42.4]} 23. Rxe2 {[%clk 0:01:52.6]} 23... Kf7
{[%clk 0:01:44]} 24. Ng3 {[%clk 0:01:52]} 24... Rd5 {[%clk 0:01:38.7]} 25. Ra6
{[%clk 0:01:41.7]} 25... Rd1+ {[%clk 0:01:29]} 26. Kh2 {[%clk 0:01:42.1]} 26...
Ng4+ {[%clk 0:01:30.3]} 27. hxg4 {[%clk 0:01:42.9]} 27... Rh8+ {[%clk
0:01:31.8]} 28. Nh5 {[%clk 0:01:44]} 28... Rd6 {[%clk 0:01:16.9]} 29. Re3 {[%clk
0:01:08.6]} 29... gxh5 {[%clk 0:01:17.6]} 30. Rh3 {[%clk 0:01:09.3]} 30... Kg6
{[%clk 0:01:18.1]} 31. Be3 {[%clk 0:01:10.3]} 31... Ne7 {[%clk 0:01:07.4]} 0-1

[Event "*** Titled Tuesday 3|2 Blitz"]
[Site "Chess.com"]
[Date "2015.11.03"]
[Round "6"]
[White "Noukii"]
[Black "Sadovsky_Artem"]
[Result "1/2-1/2"]
[WhiteElo "2628"]
[BlackElo "2476"]
[TimeControl "180+2"]
[EndTime "18:11:10 PST"]
[Termination "Game drawn by agreement"]

1. d4 {[%clk 0:03:01.9]} 1... g6 {[%clk 0:02:53.8]} 2. c4 {[%clk 0:03:02.6]}
2... Bg7 {[%clk 0:02:54.9]} 3. Nc3 {[%clk 0:03:04.2]} 3... d6 {[%clk 0:02:55.7]}
4. e4 {[%clk 0:03:04.7]} 4... e5 {[%clk 0:02:56.4]} 5. dxe5 {[%clk 0:03:03.5]}
5... dxe5 {[%clk 0:02:58]} 6. Qxd8+ {[%clk 0:03:05]} 6... Kxd8 {[%clk
0:02:58.9]} 7. f4 {[%clk 0:03:06.6]} 7... Nc6 {[%clk 0:02:52.9]} 8. Nf3 {[%clk
0:03:07.8]} 8... Nd4 {[%clk 0:02:53.4]} 9. Kf2 {[%clk 0:03:09.4]} 9... Nxf3
{[%clk 0:02:48.9]} 10. gxf3 {[%clk 0:03:11.3]} 10... Be6 {[%clk 0:02:50]} 11.
Be3 {[%clk 0:03:10.4]} 11... exf4 {[%clk 0:02:46.2]} 12. Rd1+ {[%clk 0:03:08.1]}
12... Kc8 {[%clk 0:02:44.9]} 13. Bxf4 {[%clk 0:03:09.2]} 13... c6 {[%clk
0:02:41]} 14. Be2 {[%clk 0:02:59]} 14... Nf6 {[%clk 0:02:37.1]} 15. Rc1 {[%clk
0:02:51.1]} 15... Nh5 {[%clk 0:02:22]} 16. Be3 {[%clk 0:02:50.6]} 16... Be5
{[%clk 0:02:22.8]} 17. Nd5 {[%clk 0:02:49]} 17... Re8 {[%clk 0:02:06.7]} 18. b3
{[%clk 0:02:19]} 18... f5 {[%clk 0:01:53.5]} 19. f4 {[%clk 0:02:02.7]} 19...
Bxd5 {[%clk 0:01:48.3]} 20. cxd5 {[%clk 0:01:21.6]} 20... Bxf4 {[%clk
0:01:47.8]} 21. Bxh5 {[%clk 0:01:18.6]} 21... Bxe3+ {[%clk 0:01:48.9]} 22. Kxe3
{[%clk 0:01:20.5]} 22... Rxe4+ {[%clk 0:01:47.6]} 23. Kf3 {[%clk 0:01:18.2]}
23... gxh5 {[%clk 0:01:49.3]} 24. dxc6 {[%clk 0:01:10.4]} 24... bxc6 {[%clk
0:01:47.2]} 25. Rxc6+ {[%clk 0:01:12.3]} 25... Kb7 {[%clk 0:01:48.8]} 26. Rf6
{[%clk 0:00:59.6]} 26... Rae8 {[%clk 0:01:21.5]} 27. Rg1 {[%clk 0:00:47.3]}
27... Re3+ {[%clk 0:01:13.9]} 28. Kf4 {[%clk 0:00:48.4]} 28... R3e4+ {[%clk
0:01:12.2]} 29. Kg5 {[%clk 0:00:30.8]} 29... Re2 {[%clk 0:01:03.6]} 30. Kh6
{[%clk 0:00:25.8]} 30... R8e7 {[%clk 0:00:59]} 31. h4 {[%clk 0:00:25.9]} 31...
Rxa2 {[%clk 0:00:58.3]} 32. Rxf5 {[%clk 0:00:26.2]} 32... Rae2 {[%clk
0:00:42.3]} 33. Rg7 {[%clk 0:00:19.7]} 33... Rxg7 {[%clk 0:00:36.5]} 34. Kxg7
{[%clk 0:00:21.6]} 34... Re3 {[%clk 0:00:38.2]} 35. b4 {[%clk 0:00:22]} 35...
Re4 {[%clk 0:00:36.4]} 36. Rxh5 {[%clk 0:00:23.6]} 36... Rxb4 {[%clk 0:00:36.2]}
37. Kxh7 {[%clk 0:00:24.2]} 37... Rg4 {[%clk 0:00:30]} 38. Rh6 {[%clk
0:00:23.8]} 38... a5 {[%clk 0:00:28.5]} 1/2-1/2